Cogmind - Beta 16 @@@ ROGUE MODE // 2025.11.22 @ 06:17:28 Player: Shimejimeji Result: Self-destructed Performance ------------- Evolutions (1) 500 Regions Visited (3) 600 Robots Destroyed (26) 130 Value Destroyed (496) 496 Prototype IDs (0) 0 Alien Tech Used (0) 0 Bonus (0) 0 TOTAL SCORE: 1726 Bonus ------- None Cogmind --------- Core Integrity 170/400 Matter 76/300 Energy 100/100 System Corruption 0% Temperature Cool (9) Movement Core (350) Ox6 Location -9/Materials Parts ------- > --- POWER (2) -------- (None) > --- PROPULSION (2) --- (None) > --- UTILITY (3) ------ Large Storage Unit Sensor Array Hacking Suite > --- WEAPON (2) ------- (None) > --- INVENTORY (15) --- Cesium-ion Thruster Cesium-ion Thruster Terrain Scanner EM Pulse Gun Small Laser Beam Rifle Light Cannon Improved Light Cannon Mining Laser Peak State ------------ > --- POWER ------------ Light Ion Engine Light Ion Engine > --- PROPULSION ------- Cesium-ion Thruster Cesium-ion Thruster > --- UTILITY ---------- High-capacity Storage Unit Sensor Array > --- WEAPON ----------- Beam Cannon Improved Light Cannon > --- INVENTORY -------- Aluminum Leg Aluminum Leg Hover Unit Heat Sink Large Storage Unit High-capacity Storage Unit Terrain Scanner Weapon Shielding EM Pulse Gun Small Laser Light Cannon Grenade Launcher Mining Laser [Rating: 14] Favorites ----------- Power Light Ion Engine Engine Light Ion Engine Propulsion Aluminum Leg Leg Aluminum Leg Wheel Wheel Flight Unit Cesium-ion Thruster Utility High-capacity Storage Unit Device Terrain Scanner Storage High-capacity Storage Unit Hackware Hacking Suite Weapon Improved Light Cannon Energy Cannon Beam Cannon Ballistic Gun Assault Rifle Ballistic Cannon Improved Light Cannon Launcher Grenade Launcher Build | -11 -10 -10 -9 ------- Run | Yrd Mat Min Mat Slots Evolved 2 | . . . 2 Power 1 | . . . 1 Propulsion . | . . . . Utility 1 | . . . 1 Weapon . | . . . . Parts Attached 27 | 8 7 2 10 Power 4 | 2 . . 2 Engine 4 | 2 . . 2 Core . | . . . . Reactor . | . . . . Propulsion 8 | 3 1 . 4 Treads . | . . . . Leg 5 | 2 1 . 2 Wheel 1 | 1 . . . Hover . | . . . . Flight 2 | . . . 2 Utility 9 | 1 4 2 2 Device 4 | . 2 2 . Storage 4 | 1 2 . 1 Processor . | . . . . Hackware 1 | . . . 1 Protection . | . . . . Artifact . | . . . . Weapon 6 | 2 2 . 2 Energy Gun . | . . . . Energy Cannon 1 | . 1 . . Ballistic Gun 3 | 2 . . 1 Ballistic Cannon 1 | . 1 . . Launcher 1 | . . . 1 Special Weapon . | . . . . Impact Weapon . | . . . . Slashing Weapon . | . . . . Piercing Weapon . | . . . . Special Melee Weapon . | . . . . Unidentified Prototypes . | . . . . Parts Lost 13 | . 2 . 11 Power 4 | . 1 . 3 Propulsion 4 | . . . 4 Utility 1 | . . . 1 Weapon 4 | . 1 . 3 Highest Loss Streak 3 | . 2 . 3 To Critical Strikes . | . . . . Average Backups 7 | 3 7 9 9 Power . | . . 1 . Propulsion 1 | 1 1 1 2 Utility 2 | . 2 4 1 Weapon 3 | 1 3 3 5 Tool/Special . | . . . . Unused Backups 14 | 1 5 . 8 Power . | . . . . Propulsion 3 | 1 1 . 1 Utility 3 | . 1 . 2 Weapon 8 | . 3 . 5 Tool/Special . | . . . . Average Slot Usage (%) 95 | . 99 100 84 Engine 13 | . 13 14 13 Leg 25 | . 28 28 18 Device 14 | . 14 14 16 Storage 13 | . 13 14 11 Energy Cannon 7 | . 2 14 5 Ballistic Gun 7 | . 15 . 5 Ballistic Cannon 11 | . 9 14 9 Peak Build Rating 14 | 6 9 9 14 Average Rating 7 | 4 7 8 10 On Entrance 5 | . 6 8 9 Avg Prop Armor Cover (%) . | . . . . Naked Turns . | . . . . Heaviest Build 55 | 8 51 51 55 Greatest Support 20 | 20 20 20 20 Greatest Overweight (x) 10 | 2 2 2 10 Average Overweight (x) . | . . 2 1 Largest Inventory Capacity 20 | 5 20 20 20 Average Capacity 15 | 5 16 20 15 Most Carried 14 | 5 10 12 14 Average Carried 7 | 3 7 9 9 Final Capacity 20 | 5 20 20 15 Final Carried 12 | 5 7 12 9 Class Distribution -------------------- 97% | Mutant Dominant Class ---------------- Mutant | -10/Materials Mutant | -10/Mines Mutant | -9/Materials Resources | -11 -10 -10 -9 ----------- Run | Yrd Mat Min Mat Matter Collected 728 | 332 132 127 137 Remotely . | . . . . Salvage Created 454 | 48 122 119 165 Parts 49 | 6 18 9 16 Haulers Intercepted . | . . . . Recyclers Shooed 3 | . 1 . 2 Parts Field Recycled . | . . . . Retrieved Matter . | . . . . Parts Self-Destructed . | . . . . Prevented . | . . . . Parts Restored . | . . . . Kills | -11 -10 -10 -9 ------- Run | Yrd Mat Min Mat Combat Hostiles Destroyed 22 | 1 9 5 7 Guns 5 | 1 2 . 2 Cannons 16 | . 7 5 4 AOE 1 | . . . 1 Classes Destroyed 5 | 2 1 . 2 Worker 3 | 1 . . 2 Operator 1 | . . . 1 Swarmer 14 | . 8 3 3 Grunt 6 | 1 1 2 2 Sentry 2 | . . . 2 Best Kill Streak 3 | 1 3 3 3 Combat Bots Only 3 | 1 3 3 3 Max Kills in Single Turn 1 | 1 1 1 1 Gunslinging . | . . . . Exploded 1 | . . . 1 Melee . | . . . . Uniques/NPCs Destroyed . | . . . . Combat | -11 -10 -10 -9 -------- Run | Yrd Mat Min Mat Hostile Shots Fired 194 | 14 77 14 89 Missed 51 | 7 19 5 20 Hits 143 | 7 58 9 69 Projectile 143 | 7 58 9 69 Critical Strikes 4 | . 2 . 2 Damage Taken 1601 | 75 507 75 944 Core 377 | 32 115 . 230 Absorbed by Shields . | . . . . Core Remaining (%) 64 | 87 . 41 . Volleys Fired 75 | 11 19 9 36 Largest 2 | 2 2 2 2 Hottest 93 | 40 93 93 93 Shots Fired 146 | 22 39 18 67 Gun 57 | 22 14 . 21 Cannon 81 | . 25 18 38 Launcher 8 | . . . 8 Special . | . . . . Kinetic 105 | 22 28 9 46 Thermal 33 | . 11 9 13 Explosive 8 | . . . 8 Electromagnetic . | . . . . Robot Hit Streak 23 | 5 4 10 23 Robot Miss Streak 4 | 4 4 2 4 Penetration Max . | . . . . Secondary Targets . | . . . . Shots Hit Robots 79 | 13 16 12 38 Core Hits 30 | 3 9 5 13 Critical Kills . | . . . . Critical Parts Destroyed . | . . . . Critical Strikes 1 | . . . 1 Blast 1 | . . . 1 Melee Attacks . | . . . . Impact . | . . . . Slashing . | . . . . Piercing . | . . . . Sneak Attacks . | . . . . Combat Hostiles . | . . . . Follow-up Attacks . | . . . . Damage Inflicted 1487 | 162 280 227 818 Guns 355 | 159 61 . 135 Cannons 907 | . 216 227 464 Explosions 219 | . . . 219 Melee . | . . . . Ramming 6 | 3 3 . . Kinetic 912 | 159 190 104 459 Thermal 350 | . 87 123 140 Explosive 219 | . . . 219 Electromagnetic . | . . . . Impact . | . . . . Slashing . | . . . . Piercing . | . . . . Highest Corruption 3 | . 3 3 . Average Corruption 2 | . 2 3 . Corruption Purged . | . . . . Corruption Blocked . | . . . . Effects 21 | . 5 16 . Message Errors 4 | . 1 3 . Matter Fused 3 | . . 3 . Heat Flow Errors 1 | . . 1 . Energy Discharges 4 | . 1 3 . Parts Fused 1 | . 1 . . Data Loss (minor) 5 | . 1 4 . Data Loss (major) 1 | . . 1 . Misfires 1 | . 1 . . Alerts 1 | . . 1 . Overload Shots . | . . . . Overflow Damage 15 | . . . 15 Projectiles 6 | . . . 6 Explosions 9 | . . . 9 Melee . | . . . . Knockbacks 2 | . . 1 1 Impact . | . . . . Kinetic 2 | . . 1 1 Secondary . | . . . . Self-Inflicted Damage 96 | . . . 96 Shots 4 | . . . 4 Rammed . | . . . . Targets Rammed 2 | 1 1 . . Kicked 2 | 1 1 . . Crushed . | . . . . Highest Temperature 248 | 6 132 248 231 Average Temperature 53 | 6 46 50 61 Received Heat Transfer 351 | 42 24 6 279 Effects 1 | . . 1 . Energy Bleed 1 | . . 1 . Siege Activations . | . . . . Martial Activations . | . . . . Shielding Activations . | . . . . Robots Disrupted . | . . . . Combat Hostiles . | . . . . Robots Corrupted . | . . . . Combat Hostiles . | . . . . Parts Fried . | . . . . Impact Corruptions . | . . . . Robots Melted . | . . . . Combat Hostiles . | . . . . Parts Melted 1 | . . 1 . Heat Transferred 740 | . 185 259 296 Parts Sabotaged . | . . . . Parts Stolen . | . . . . Parts Stripped . | . . . . Power Chain Reactions . | . . . . Alert | -11 -10 -10 -9 ------- Run | Yrd Mat Min Mat Maximum Alert Level . | . . . . Low Security (%) 100 | 100 100 100 100 Level 1 . | . . . . Level 2 . | . . . . Level 3 . | . . . . Level 4 . | . . . . Level 5 . | . . . . High Security . | . . . . Max Security . | . . . . Peak Influence 123 | 20 123 77 63 Initial 43 | . . 43 24 Average 12 | . 19 11 15 Influence Increases 686 | 25 265 137 259 Destroy 0b10 Robot/C 440 | 20 180 100 140 Destroy 0b10 Robot/NC 20 | 5 . . 15 Destroy Leader 100 | . 30 20 50 Allied During Kill 2 | . . 2 . Successful Hack 6 | . 6 . . Disable Machine 45 | . 15 15 15 Destroy Structure 43 | . 4 . 39 Lose Combat Pursuer 30 | . 30 . . Influence Decreases 650 | 25 154 185 286 Entered New Map 107 | . . 68 39 Time Decay 453 | 25 134 117 177 Lost Part 90 | . 20 . 70 Squads Dispatched 4 | . 1 . 3 Investigation . | . . . . Extermination . | . . . . Reinforcement 4 | . 1 . 3 Assault . | . . . . Garrison . | . . . . Intercept . | . . . . Searches Triggered . | . . . . Construction Impeded . | . . . . Haulers Reinforced . | . . . . Active Scanning Responses . | . . . . Cargo Convoy Interrupts . | . . . . Stealth | -11 -10 -10 -9 --------- Run | Yrd Mat Min Mat Distress Signals 3 | . 3 . . Communications Jammed . | . . . . Distress Signals . | . . . . Times Spotted 37 | 1 20 5 11 Peak Tracking Total 5 | 1 5 3 3 Tactical Retreats 2 | . 2 . . Traps | -11 -10 -10 -9 ------- Run | Yrd Mat Min Mat Traps Triggered 3 | . 3 . . Indirectly . | . . . . Trap Hack Attempts . | . . . . Triggered . | . . . . Disarmed . | . . . . Reprogrammed . | . . . . Reused . | . . . . Traps Extracted . | . . . . Installed . | . . . . Triggered . | . . . . Machines | -11 -10 -10 -9 ---------- Run | Yrd Mat Min Mat Machines Disabled 3 | . 1 1 1 Max in Single Turn 1 | . 1 1 1 Machines Repaired . | . . . . Machines Dismantled . | . . . . Machines Sabotaged . | . . . . Overloaded Fab Kills . | . . . . Hacking | -11 -10 -10 -9 --------- Run | Yrd Mat Min Mat Machines Accessed 5 | . 3 . 2 Terminals 2 | . 2 . . Fabricators . | . . . . Repair Stations 1 | . 1 . . Recycling Units 2 | . . . 2 Scanalyzers . | . . . . Garrison Access . | . . . . Total Hacks 10 | . 5 . 5 Successful 7 | . 3 . 4 Failed 3 | . 2 . 1 Catastrophic . | . . . . Database Lockouts . | . . . . Manual 1 | . 1 . . Terminals 4 | . 4 . . Fabricators . | . . . . Repair Stations 1 | . 1 . . Recycling Units 5 | . . . 5 Scanalyzers . | . . . . Garrison Access . | . . . . Terminal Hacks 2 | . 2 . . Record 1 | . 1 . . Emergency Access Points 1 | . 1 . . Fabricator Hacks . | . . . . Repair Station Hacks 1 | . 1 . . Scan Component 1 | . 1 . . Recycling Unit Hacks 4 | . . . 4 Process 2 | . . . 2 Report Inventory 1 | . . . 1 Retrieve Components 1 | . . . 1 Scanalyzer . | . . . . Garrison Access Hacks . | . . . . Unauthorized Hacks . | . . . . Terminals . | . . . . Fabricators . | . . . . Repair Stations . | . . . . Recycling Units . | . . . . Scanalyzers . | . . . . Garrison Access . | . . . . Data Cores Recovered . | . . . . Used . | . . . . Hacking Detections 3 | . 2 . 1 Full Trace Events . | . . . . Feedback Events . | . . . . Feedback Blocked . | . . . . Robot Schematics Acquired . | . . . . Robots Built . | . . . . Authchips . | . . . . Time . | . . . . Total Robot Build Rating . | . . . . Part Schematics Acquired . | . . . . Parts Built . | . . . . Authchips . | . . . . Time . | . . . . Total Part Build Rating . | . . . . Part Studies Acquired . | . . . . Parts Repaired . | . . . . Time . | . . . . Parts Recycled . | . . . . Recycled Matter 384 | . . . 384 Retrieved Matter . | . . . . Retrieved Components . | . . . . Parts Scanalyzed . | . . . . Part Schematics Acquired . | . . . . Parts Damaged . | . . . . Bothacking | -11 -10 -10 -9 ------------ Run | Yrd Mat Min Mat Used RIF Installer . | . . . . Robots Hacked . | . . . . Non-combat . | . . . . Combat . | . . . . Robot Hacks Applied . | . . . . Relay Couplers Released . | . . . . Fabnet Peak Effective % . | . . . . Robots Rewired . | . . . . Allies Hacked . | . . . . Hacks Repelled . | . . . . Allies | -11 -10 -10 -9 -------- Run | Yrd Mat Min Mat Total Allies 1 | . . 1 . Largest Group 1 | . . 1 . Highest-Rated Group 31 | . . 31 . Highest-Rated Ally 31 | . . 31 . Total Orders . | . . . . Ally Attacks 6 | . . 6 . Total Damage 84 | . . 84 . Kills . | . . . . Allies Corrupted . | . . . . Allies Melted . | . . . . Intel | -11 -10 -10 -9 ------- Run | Yrd Mat Min Mat Active Infowar (turns) 1851 | . 830 408 613 Sensors 831 | . . 218 613 Terrain 1126 | . 830 190 106 Robot Analysis Total . | . . . . Derelict Logs Recovered . | . . . . Drone Launches . | . . . . Drone Recoveries . | . . . . Exploration | -11 -10 -10 -9 ------------- Run | Yrd Mat Min Mat Turns Passed 2955 | 554 973 815 613 Spaces Moved 1502 | 532 460 301 209 Core 210 | 210 . . . Treads . | . . . . Legs 1291 | 322 460 301 208 Wheels . | . . . . Hover . | . . . . Flight 1 | . . . 1 Fastest Speed 50 | 50 120 260 120 Average Speed 172 | 92 187 260 214 Slowest Speed 835 | 150 260 260 835 Overloaded Moves . | . . . . Propulsion Burnouts . | . . . . Robots Hopped . | . . . . Potential Cave-ins . | . . . . Cave-ins Triggered . | . . . . Exploration Rate (%) 37 | 10 53 73 14 Regions Visited 3 Branch Regions 1 Pre-discovered Areas . | . . . . Known Exits Taken . | . . . . Unknown Exits Taken 3 | 1 1 1 . Scrap Searched 2 | . . 2 . Spaces Dug 8 | . . . 8 Terrain Destroyed 46 | . 2 . 44 Melee . | . . . . Projectile 3 | . 2 . 1 AOE 43 | . . . 43 Terrain Rammed . | . . . . Walls Destroyed . | . . . . Machines Disabled . | . . . . Actions | -11 -10 -10 -9 --------- Run | Yrd Mat Min Mat Total 1737 | 572 536 316 313 Wait 50 | . 19 . 31 Move 1499 | 531 459 300 209 Hop . | . . . . Pick Up 50 | 13 18 5 14 Fast Attach . | . . . . Attach 23 | 9 4 . 10 Detach 5 | 3 . . 2 Swap 13 | 2 4 2 5 Drop 20 | 2 12 . 6 Fire 75 | 11 19 9 36 Melee . | . . . . Ram . | . . . . Kick 2 | 1 1 . . Crush . | . . . . Escape Stasis . | . . . . Rewire . | . . . . Trap . | . . . . Miscellaneous . | . . . . Route ------- -11/Scrapyard -10/Materials (discovered 3 exits: *Mat x2 / [*Min]) -10/Mines (discovered 2 exits: *Mat / [*Exi]) -9/Materials History --------- Turn | Location | Event 2 | -11/Scrapyard | Met Revision 17 262 | -11/Scrapyard | Discovered new exit (range 8) 555 | -11/Scrapyard | Entered Materials 576 | -10/Materials | Build established: Mutant 960 | -10/Materials | Discovered new exit (range 7) 1064 | -10/Materials | Discovered new exit (range 6) 1160 | -10/Materials | Discovered new exit (range 10) 1356 | -10/Materials | Core integrity fell below 50% 1528 | -10/Materials | Entered Mines 1793 | -10/Mines | Received a Mining Laser from a helpful Derelict 1829 | -10/Mines | Deemed a non-threat by the Exiles lab entrance 1832 | -10/Mines | Discovered new exit (range 5) 2285 | -10/Mines | Discovered new exit (range 6) 2343 | -10/Mines | Entered Materials 2343 | -9/Materials | Evolved 2 slots: Power x1, Utility x1 2733 | -9/Materials | Lost 3 parts (1p1n1u) 2956 | -9/Materials | Self-destructed Last Messages --------------- O-16 Technician: "IFF HANDSHAKE FAILED. SECURING TERMINAL." ALERT: Hostiles spotted, dispatching reinforcements to Terminal M011. Lgt. Ion Engine destroyed. K-01 Serf cleans the Material Compactor. Material Compactor disabled. K-01 Serf destroyed. Aluminum Leg destroyed. G-34 Mercenary suffers critical hit (Burn). G-34 Mercenary destroyed. The unstable cave ceiling collapses. Autogun destroyed. Critical hit (Burn: +37). U-05 Engineer builds a Wall. Aluminum Leg destroyed. Destroyed Aluminum Leg. Grenade Launcher destroyed. [Achievement: Overwhelming] Destroyed Grenade Launcher. Map ----- +----------------------------------------------------+ | ????????????????????????????????????????# """ # | | ????????????????????????????????????????# "Y"=# | | ????????????????????????????????????????# / | | ????????????????????????????????????????# =# | | ???????????????????????????????? ???# # [ | | ???????????????????????????????? ???########%% | | ???????????????????????????????? ?######### [ | | ???????????????????????????????# | | ????????????????????????????????# #?######### | | ????????????????????????????????# #?????????# | | ????????????????????????????????# #?????????# | | ????????????????????????????????+ +?????????## | | ????????????????????????????????# #??????????# | | ????????????????????????????????# #??????????# | | ????????????????????????????????# #??????????# | | ???????????????????????????????## #??????????# | | ???????????????????????????????? #??????????# | | ????????????????????????????????# ###?######## | | ????????????????????????????????# #?# # | | ???????????????????????????????? ? #?# """ # | | ?????????????????????????????#### #?# """ # | | ????????????????????????##### #?# """ + | | ????????????????????????# "" # #?# # | | ???????????????????????## """" = # #?# # | | ???????????????????????# "" # #?######## | | ???????????????????????# @ ########### | | ???????????????????????# T | | ???????????????????????# Y [% "" | | ??????????????????????? | | ?????????????????????? #+########## | | ????????????????????? #????###+ | | ????????????????????? # "" #???????? | | ???????????????????? # Y" ##??????? | | ??????????????????? ##### "" #???????? | | ?????????????????? [ ?????#### #??#???"? | | ?????????????????? ?????????# """ #???????? | | ?????????????????##+###?????????# """ #???????? | | ????????????????????????????????# """ #???????? | | ????????????????????????????????# #???????? | | ????????????????????????????????##########???????? | | ?????????????????????????????????????????????????? | | ?????????????????????????????????????????????????? | | ?????????????????????????????????????????????????? | | ?????????????????????????????????????????????????? | | ?????????????????????????????????????????????????? | | ?????????????????????????????????????????????????? | | ?????????????????????????????????????????????????? | | ?????????????????????????????????????????????????? | | ?????????????????????????????????????????????????? | | ?????????????????????????????????????????????????? | +----------------------------------------------------+ Best States ------------- Heat Dissipation 38 Energy Generation 15 Energy Capacity 150 Matter Stores 311 Matter Capacity 350 Sight Range 16 Robot Scan Range 14 Terrain Scan Range 14 Terrain Scan Density 10 Evasion (%) 55 Offensive Hacking 10 Item Schematics ----------------- None Robot Schematics ------------------ None Fabricated ------------ Nothing Repaired ---------- Nothing Studied --------- None Alien Tech Used ----------------- None Achievements -------------- Crack Shot For Emergencies Only Ghost 'Em I Have A Map? Organ Harvest Overwhelming There's More Where That Came From Uninvited Guest Challenges ------------ None Game ------ Seed SeismicTacticalBeacon Manual? 0 Play Time 01:28:32 Cumulative 1.4 hours Start 2025.11.22 @ 04:11:28 End 2025.11.22 @ 06:17:28 Sessions 1 Manual Loads 0 Difficulty Rogue Special Mode None Game No. 1 Rogue 1 Adventurer 0 Explorer 0 Win Type - Total 0 Types 0/0/0/0/0/0/0/0/0/0 Lore% 0 Gallery% 1 Achievement% 1 Wizard Run 0 Options --------- Layout 1 ASCII 0 Keyboard 1 Movement Arrows Keybinds 0 Fullscreen 2 Font 24/Smallcaps Map View 50x35 Zoom Use 0% Tactical HUD 0 Map Filters NONE Filters NONE Steam 1 RUN: 44afe555-b7ca-4a70-aa47-dd02338f581e